fUSD/lending_fUSD_20260219
["ID","MTS","AMOUNT","RATE_DAILY","PERIOD"]
[406000088,1771518639140,-927.27566595,0.00017971,2]
[406000090,1771518639158,-350.0,0.00017981,2]
[406000092,1771518639169,-156.268,0.00017998,2]
[406000095,1771518639179,-751.79707324,0.00017999,2]
[406000097,1771518639189,-1461.53,0.00017999,2]
[406000099,1771518639199,-1461.53,0.00017999,2]
[406000101,1771518639208,-1461.53,0.00017999,2]
[406000103,1771518639218,-1461.53,0.00017999,2]
[406000105,1771518639229,-500.0,0.00017999,2]
[406000107,1771518639238,-500.0,0.00017999,2]
[406000109,1771518639249,-500.0,0.00017999,2]
[406000111,1771518639259,-500.0,0.00017999,2]
[406000113,1771518639269,-500.0,0.00017999,2]
[406000115,1771518639279,-500.0,0.00017999,2]
[406000117,1771518639290,-500.0,0.00017999,2]
[406000119,1771518639300,-500.0,0.00017999,2]
[406000121,1771518639310,-500.0,0.00017999,2]
[406000123,1771518639320,-500.0,0.00017999,2]
[406000125,1771518639330,-500.0,0.00017999,2]
[406000127,1771518639339,-500.0,0.00017999,2]
[406000129,1771518639349,-500.0,0.00017999,2]
[406000131,1771518639359,-500.0,0.00017999,2]
[406000133,1771518639368,-500.0,0.00017999,2]
[406000135,1771518639378,-500.0,0.00017999,2]
[406000137,1771518639388,-500.0,0.00017999,2]
[406000140,1771518639397,-161.4355527,0.00017999,2]
[406000142,1771518639407,-349.79589102,0.00017999,2]
[406000144,1771518639416,-872.66,0.00017999,2]
[406000146,1771518639426,-872.66,0.00017999,2]
[406000148,1771518639436,-872.66,0.00017999,2]
[406000150,1771518639445,-872.66,0.00017999,2]
[406000152,1771518639455,-872.66,0.00017999,2]
[406000154,1771518639465,-872.66,0.00017999,2]
[406000156,1771518639475,-872.66,0.00017999,2]
[406000158,1771518639484,-872.66,0.00017999,2]
[406000161,1771518639494,-872.66,0.00017999,2]
[406000163,1771518639503,-872.66,0.00017999,2]
[406000165,1771518639513,-872.66,0.00017999,2]
[406000167,1771518639523,-872.66,0.00017999,2]
[406000169,1771518639533,-872.66,0.00017999,2]
[406000171,1771518639546,-872.66,0.00017999,2]
[406000173,1771518639556,-872.66,0.00017999,2]
[406000175,1771518639565,-872.66,0.00017999,2]
[406000176,1771518639575,-872.66,0.00017999,2]
[406000177,1771518639584,-872.66,0.00017999,2]
[406000178,1771518639594,-1360.75,0.00017999,2]
[406000179,1771518639604,-1360.75,0.00017999,2]
[406000180,1771518639614,-1360.75,0.00017999,2]
[406000181,1771518639623,-1360.75,0.00017999,2]
[406000182,1771518639633,-1360.75,0.00017999,2]
[406000183,1771518639643,-1360.75,0.00017999,2]
[406000184,1771518639652,-1360.75,0.00017999,2]
[406000185,1771518639662,-1360.75,0.00017999,2]
[406000186,1771518639672,-1360.75,0.00017999,2]
[406000187,1771518639681,-1360.75,0.00017999,2]
[406000188,1771518639690,-1360.75,0.00017999,2]
[406000189,1771518639700,-1360.75,0.00017999,2]
[406000190,1771518639712,-1360.75,0.00017999,2]
[406000191,1771518639722,-1360.75,0.00017999,2]
[406000192,1771518639732,-1360.75,0.00017999,2]
[406000194,1771518639742,-1360.75,0.00017999,2]
[406000195,1771518639752,-1360.75,0.00017999,2]
[406000196,1771518639763,-1360.75,0.00017999,2]
[406000197,1771518639772,-971.38,0.00017999,2]
[406000198,1771518639782,-971.38,0.00017999,2]
[406000199,1771518639793,-971.38,0.00017999,2]
[406000200,1771518639803,-971.38,0.00017999,2]
[406000201,1771518639812,-971.38,0.00017999,2]
[406000202,1771518639822,-971.38,0.00017999,2]
[406000203,1771518639832,-971.38,0.00017999,2]
[406000204,1771518639842,-971.38,0.00017999,2]
[406000205,1771518639852,-971.38,0.00017999,2]
[406000206,1771518639861,-971.38,0.00017999,2]
[406000207,1771518639870,-971.38,0.00017999,2]
[406000208,1771518639881,-971.38,0.00017999,2]
[406000209,1771518639891,-971.38,0.00017999,2]
[406000210,1771518639902,-971.38,0.00017999,2]
[406000211,1771518639911,-971.38,0.00017999,2]
[406000212,1771518639921,-971.38,0.00017999,2]
[406000213,1771518639930,-971.38,0.00017999,2]
[406000214,1771518639939,-971.38,0.00017999,2]
[406000215,1771518639949,-500.0,0.00017999,2]
[406000216,1771518639958,-500.0,0.00017999,2]
[406000217,1771518639967,-500.0,0.00017999,2]
[406000218,1771518639977,-500.0,0.00017999,2]
[406000219,1771518639987,-500.0,0.00017999,2]
[406000220,1771518639997,-500.0,0.00017999,2]
[406000221,1771518640006,-500.0,0.00017999,2]
[406000222,1771518640017,-500.0,0.00017999,2]
[406000223,1771518640027,-500.0,0.00017999,2]
[406000224,1771518640038,-500.0,0.00017999,2]
[406000225,1771518640048,-500.0,0.00017999,2]
[406000226,1771518640058,-500.0,0.00017999,2]
[406000227,1771518640068,-500.0,0.00017999,2]
[406000228,1771518640077,-500.0,0.00017999,2]
[406000229,1771518640087,-500.0,0.00017999,2]
[406000230,1771518640097,-500.0,0.00017999,2]
[406000231,1771518640106,-500.0,0.00017999,2]
[406000232,1771518640116,-461.09786623,0.00017999,2]
[406000233,1771518640126,-500.0,0.00017999,2]
[406000234,1771518640135,-500.0,0.00017999,2]
[406000235,1771518640145,-500.0,0.00017999,2]
[406000236,1771518640155,-500.0,0.00017999,2]
[406000237,1771518640165,-500.0,0.00017999,2]
[406000238,1771518640175,-500.0,0.00017999,2]
[406000239,1771518640185,-500.0,0.00017999,2]
[406000240,1771518640195,-500.0,0.00017999,2]
[406000241,1771518640205,-500.0,0.00017999,2]
[406000242,1771518640215,-500.0,0.00017999,2]
[406000243,1771518640224,-500.0,0.00017999,2]
[406000244,1771518640234,-529.40507312,0.00017999,2]
[406000245,1771518640244,-500.0,0.00017999,2]
[406000246,1771518640254,-500.0,0.00017999,2]
[406000247,1771518640263,-420.74787119,0.00017999,2]
[406000248,1771518640273,-500.0,0.00017999,2]
[406000249,1771518640282,-503.03,0.00017999,2]
[406000250,1771518640294,-503.03,0.00017999,2]
[406000251,1771518640303,-503.03,0.00017999,2]
[406000252,1771518640313,-503.03,0.00017999,2]
[406000253,1771518640323,-503.03,0.00017999,2]
[406000254,1771518640332,-503.03,0.00017999,2]
[406000255,1771518640342,-503.03,0.00017999,2]
[406000256,1771518640352,-503.03,0.00017999,2]
[406000257,1771518640362,-503.03,0.00017999,2]
[406000258,1771518640371,-503.03,0.00017999,2]
[406000259,1771518640380,-503.03,0.00017999,2]
[406000260,1771518640390,-500.0,0.00017999,2]
[406000261,1771518640400,-500.0,0.00017999,2]
[406000262,1771518640409,-500.0,0.00017999,2]
[406000263,1771518640419,-508.20125622,0.00017999,2]
[406000264,1771518640427,-771.29,0.00017999,2]
[406000265,1771518640437,-771.29,0.00017999,2]
[406000266,1771518640447,-771.29,0.00017999,2]
[406000267,1771518640457,-771.29,0.00017999,2]
[406000268,1771518640466,-771.29,0.00017999,2]
[406000269,1771518640476,-771.29,0.00017999,2]
[406000270,1771518640485,-771.29,0.00017999,2]
[406000271,1771518640495,-771.29,0.00017999,2]
[406000272,1771518640504,-771.29,0.00017999,2]
[406000273,1771518640513,-771.29,0.00017999,2]
[406000274,1771518640523,-771.29,0.00017999,2]
[406000275,1771518640532,-1062.34374872,0.00017999,5]
[406000276,1771518640543,-1296.79774788,0.00017999,2]
[406000277,1771518640552,-200.0,0.00017999,2]
[406000278,1771518640561,-1000.0,0.00017999,2]
[406000279,1771518640571,-1000.0,0.00017999,2]
[406000280,1771518640580,-1000.0,0.00017999,2]
[406000281,1771518640588,-1000.0,0.00017999,2]
[406000282,1771518640597,-150.0,0.00017999,2]
[406000283,1771518640606,-200.0,0.00017999,2]
[406000284,1771518640616,-320.55855923,0.00017999,2]
[406000285,1771518640625,-411.32538725,0.00017999,2]
[406000286,1771518640634,-500.0,0.00017999,2]
[406000287,1771518640643,-500.0,0.00017999,2]
[406000288,1771518640653,-500.0,0.00017999,2]
[406000289,1771518640662,-500.0,0.00017999,2]
[406000290,1771518640671,-500.0,0.00017999,2]
[406000291,1771518640680,-500.0,0.00017999,2]
[406000292,1771518640689,-500.0,0.00017999,2]
[406000293,1771518640698,-500.0,0.00017999,2]
[406000294,1771518640710,-500.0,0.00017999,2]
[406000295,1771518640719,-500.0,0.00017999,2]
[406000296,1771518640729,-500.0,0.00017999,2]
[406000297,1771518640739,-500.0,0.00017999,2]
[406000298,1771518640750,-500.0,0.00017999,2]
[406000299,1771518640759,-555.00817092,0.00017999,2]
[406000300,1771518640768,-500.0,0.00017999,2]
[406000301,1771518640779,-500.0,0.00017999,2]
[406000302,1771518640789,-500.0,0.00017999,2]
[406000303,1771518640798,-500.0,0.00017999,2]
[406000304,1771518640808,-500.0,0.00017999,2]
[406000305,1771518640817,-428.96454463,0.00017999,2]
[406000306,1771518640827,-150.0,0.00017999,2]
[406000307,1771518640836,-424.88650159,0.00017999,2]
[406000308,1771518640846,-204495.38112991,0.00018,2]
[406000309,1771518640892,-3375.5170958,0.00018,2]
[406000310,1771518640977,-500.0,9.152e-05,2]
[406000311,1771518640986,-7783.7832798,0.00018,2]
[406000312,1771518640997,-7425.81544734,0.00018,2]
[406000313,1771518641009,-2266.94355509,0.00018,2]
[406000314,1771518641021,-13724.26333271,0.00018,2]
[406000315,1771518641032,-19398.59127873,0.00018,2]
[406000316,1771518641048,-460.86204236,0.00018,2]
[406000317,1771518641059,-853.69942282,0.00018,2]
[406000329,1771518645560,-1338.0,0.00013963,2]
[406000330,1771518645571,-1338.0,0.00016963,2]
[406000331,1771518645580,-959.42173884,0.000179,2]
[406000332,1771518645590,-5955.08784188,0.00018,2]
[406000333,1771518645750,-290.75,0.00018,2]
[406000334,1771518645762,-4365.52013504,0.00018,2]
[406000335,1771518645774,-66219.00000008,0.00018,2]
[406000336,1771518645787,-95950.000002,0.00018,2]
[406000337,1771518645827,-639380.64909199,0.00018,2]
[406000338,1771518646884,-19074.94873068,0.00018,2]
[406000348,1771519153000,153.86786722,0.0002,120]
[406000648,1771519831618,-500.0,8.604e-05,2]
[406000649,1771519831628,-502.6970799,9.152e-05,2]
[406000650,1771519831637,-152.4228,0.000116,2]
[406000651,1771519831646,-1583.21610383,0.00011699,2]
[406000652,1771519831657,-394.43964039,0.00011699,2]
[406000653,1771519831667,-300.0,0.00011699,2]
[406000654,1771519831676,-2144.78017745,0.000117,2]
[406000655,1771519831686,-249.58811185,0.000117,2]
[406000656,1771519831699,-1707.99758221,0.000117,2]
[406000657,1771519831710,-279.69176884,0.000117,2]
[406000658,1771519831726,-1409.50823022,0.000117,2]
[406000659,1771519831738,-575.75,0.000117,2]
[406000660,1771519831749,-481.37412,0.000117,2]
[406000661,1771519831775,-317.1032234,0.000117,2]
[406000662,1771519831789,-448.40077001,0.000117,2]
[406000663,1771519831799,-1278.66358523,0.000117,2]
[406000664,1771519831829,-2162.61598113,0.000117,2]
[406000666,1771519831842,-698.28078857,0.000117,2]
[406000667,1771519831851,-246.15287656,0.000117,2]
[406000680,1771519837726,-1548.78893979,0.000117,2]
[406000682,1771519837738,-6999.10561927,0.000117,2]
[406000683,1771519837749,-10123.90088725,0.000117,2]
[406000684,1771519837758,-969.9883294,0.0001188,2]
[406000685,1771519837768,-425.70532104,0.0001218,2]
[406000686,1771519837778,-1076.0,0.0001231,2]
[406000687,1771519837788,-968.0,0.00012405,2]
[406000688,1771519837798,-528.0,0.0001243,2]
[406000689,1771519837807,-223.58535543,0.00012551,2]
[406000690,1771519837818,-493.43,0.0001258,2]
[406000691,1771519837827,-534.0,0.00012591,2]
[406000692,1771519837836,-642.0,0.00012616,2]
[406000693,1771519837846,-493.43,0.00012697,2]
[406000694,1771519837857,-493.43,0.00012813,2]
[406000695,1771519837866,-425.70532104,0.00012816,2]
[406000696,1771519837876,-300.0,0.00012847,2]
[406000697,1771519837885,-271.0,0.00012859,2]
[406000698,1771519837894,-384.0,0.00012884,2]
[406000699,1771519837903,-262.0,0.0001291,2]
[406000700,1771519837912,-493.43,0.0001293,2]
[406000701,1771519837921,-493.43,0.00013047,2]
[406000702,1771519837931,-151.0,0.00013072,2]
[406000703,1771519837940,-151.0,0.00013072,2]
[406000704,1771519837949,-151.0,0.00013072,2]
[406000705,1771519837957,-151.0,0.00013072,2]
[406000706,1771519837967,-151.0,0.00013072,2]
[406000707,1771519837975,-151.0,0.00013072,2]
[406000708,1771519837986,-151.0,0.00013072,2]
[406000709,1771519837995,-151.0,0.00013072,2]
[406000710,1771519838004,-151.0,0.00013072,2]
[406000711,1771519838013,-151.0,0.00013072,2]
[406000712,1771519838025,-151.0,0.00013072,2]
[406000713,1771519838035,-3297.17,0.0001308,2]
[406000714,1771519838045,-493.43,0.00013164,2]
[406000715,1771519838054,-493.43,0.00013281,2]
[406000717,1771519838065,-493.43,0.00013398,2]
[406000719,1771519838075,-425.70532104,0.00013451,2]
[406000721,1771519838085,-493.43,0.00013515,2]
[406000722,1771519838095,-1809.57524461,0.00013529,2]
[406000723,1771519838105,-419.0,0.0001359,2]
[406000724,1771519838115,-493.43,0.00013631,2]
[406000725,1771519838125,-160.39897398,0.00013662,2]
[406000726,1771519838135,-274.71323514,0.00013707,2]
[406000727,1771519838145,-493.43,0.00013748,2]
[406000728,1771519838155,-493.43,0.00013865,2]
[406000729,1771519838164,-1338.0,0.00013963,2]
[406000730,1771519838174,-617.0,0.00013963,2]
[406000731,1771519838184,-250.0,0.00013963,2]
[406000733,1771519838194,-1275.0,0.00013963,2]
[406000735,1771519838203,-316.057,0.00013963,2]
[406000736,1771519838214,-413.0,0.00013963,2]
[406000737,1771519838224,-200.0,0.00013964,2]
[406000738,1771519838234,-493.43,0.00013982,2]
[406000739,1771519838243,-425.70532104,0.00014087,2]
[406000740,1771519838253,-384.16071186,0.00014099,2]
[406000741,1771519838265,-109.26928814,0.00014099,2]
[406000742,1771519838274,-160.0,0.00014105,2]
[406000743,1771519838283,-173.66088786,0.00014105,2]
[406000744,1771519838293,-708.10751841,0.00014153,2]
[406000745,1771519838304,-564.0886184,0.00014153,2]
[406000746,1771519838315,-537.3791078,0.00014153,2]
[406000747,1771519838324,-493.43,0.00014216,2]
[406000748,1771519838334,-296.95613232,0.00014316,2]
[406000749,1771519838345,-619.00386062,0.00014316,2]
[406000750,1771519838358,-638.55537377,0.00014316,2]
[406000751,1771519838371,-1685.48463329,0.00014316,2]
[406000752,1771519838380,-493.43,0.00014332,2]
[406000753,1771519838389,-493.43,0.00014449,2]
[406000754,1771519838398,-493.43,0.00014566,2]
[406000755,1771519838408,-167.89,0.00014579,2]
[406000756,1771519838417,-1500.0,0.00014606,2]
[406000757,1771519838426,-493.43,0.00014683,2]
[406000758,1771519838436,-425.70532104,0.00014722,2]
[406000759,1771519838444,-1809.57524461,0.00014778,2]
[406000760,1771519838454,-493.43,0.000148,2]
[406000761,1771519838463,-5530.0,0.000148,5]
[406000762,1771519838473,-1000.0,0.00014835,2]
[406000763,1771519838482,-250.0,0.00015,2]
[406000764,1771519838491,-3212.5122034,0.0001531,2]
[406000765,1771519838502,-10082.27454813,0.0001531,2]
[406000766,1771519838517,-2330.59324847,0.0001531,2]
[406000767,1771519838526,-425.70532104,0.00015358,2]
[406000768,1771519838536,-1809.57524461,0.00015402,2]
[406000769,1771519838545,-150.0,0.00015436,2]
[406000770,1771519838555,-500.0,0.0001547,2]
[406000771,1771519838564,-6426.55870592,0.00015668,2]
[406000772,1771519838575,-7458.48129408,0.00015668,2]
[406000773,1771519838584,-425.70532104,0.00015993,2]
[406000774,1771519838594,-1809.57524461,0.00016027,2]
[406000775,1771519838603,-500.0,0.00016335,2]
[406000776,1771519838614,-167.89,0.00016401,2]
[406000777,1771519838624,-179.4,0.00016438,2]
[406000778,1771519838633,-425.70532104,0.00016629,2]
[406000779,1771519838643,-1809.57524461,0.00016651,2]
[406000780,1771519838652,-1000.0,0.0001669,2]
[406000781,1771519838661,-236.8759325,0.00016963,2]
[406000782,1771519838673,-1101.1240675,0.00016963,2]
[406000783,1771519838682,-617.0,0.00016963,2]
[406000784,1771519838692,-413.0,0.00016963,2]
[406000785,1771519838701,-300.0,0.00017,2]
[406000786,1771519838711,-516.0,0.00017,2]
[406000787,1771519838720,-721.12765535,0.00017099,2]
[406000788,1771519838730,-693.3919763,0.00017099,2]
[406000789,1771519838739,-719.04747942,0.00017154,2]
[406000790,1771519838748,-745.65223616,0.00017209,2]
[406000791,1771519838757,-773.2413689,0.00017264,2]
[406000792,1771519838767,-425.70532104,0.00017264,2]
[406000793,1771519838776,-1809.57524461,0.00017276,2]
[406000794,1771519838786,-801.85129955,0.00017319,2]
[406000795,1771519838795,-831.51979763,0.00017374,2]
[406000796,1771519838805,-862.28603014,0.00017429,2]
[406000797,1771519838815,-894.19061326,0.00017484,2]
[406000798,1771519838824,-927.27566595,0.00017539,2]
[406000799,1771519838834,-961.58486559,0.00017594,2]
[406000800,1771519838843,-997.16350561,0.00017649,2]
[406000801,1771519838853,-292.25,0.00017825,2]
[406000802,1771519838863,-200.0,0.00017856,2]
[406000803,1771519838873,-1303.343,0.00017861,2]
[406000804,1771519838883,-1000.0,0.00017899,2]
[406000805,1771519838892,-5988.63697763,0.000179,2]
[406000806,1771519838905,-4011.36302237,0.000179,2]
[406000807,1771519838914,-1809.57524461,0.000179,2]
[406000808,1771519838924,-425.70532104,0.000179,2]
[406000809,1771519838934,-3887.74981289,0.000179,2]
[406000810,1771519838945,-2209.38818921,0.000179,2]
[406000811,1771519838955,-909.82812058,0.000179,2]
[406000812,1771519838964,-350.0,0.00017973,2]
[406000813,1771519838973,-1296.9491776,0.0001799,2]
[406000814,1771519838982,-151.0,0.00017997,2]
[406000815,1771519838992,-500.0,0.00017999,2]
[406000816,1771519839001,-637.92777108,0.00017999,2]
[406000817,1771519839011,-297.42055111,0.00017999,2]
[406000818,1771519839023,-500.0,0.00017999,2]
[406000819,1771519839034,-500.0,0.00017999,2]
[406000820,1771519839044,-224.39099146,0.00017999,2]
[406000821,1771519839054,-238.52478514,0.00017999,2]
[406000822,1771519839064,-500.0,0.00017999,2]
[406000823,1771519839075,-500.0,0.00017999,2]
[406000824,1771519839086,-500.0,0.00017999,2]
[406000825,1771519839096,-500.0,0.00017999,2]
[406000826,1771519839107,-500.0,0.00017999,2]
[406000827,1771519839118,-500.0,0.00017999,2]
[406000828,1771519839127,-500.0,0.00017999,2]
[406000829,1771519839137,-500.0,0.00017999,2]
[406000830,1771519839147,-500.0,0.00017999,2]
[406000831,1771519839155,-290728.73781662,0.00018,2]
[406000832,1771519839167,-863.73012948,0.00018,2]
[406000833,1771519839178,-1542.02172142,0.00018,2]
[406000834,1771519839189,-2320.58896356,0.00018,2]
[406000835,1771519839200,-3572.87009396,0.00018,2]
[406000836,1771519839211,-4000.0,0.00018,2]
[406000839,1771519839784,-767.0,0.00018,2]
[406000840,1771519839840,-54689.33604965,0.00018,2]
[406000841,1771519839852,-600.11322612,0.00018,2]
[406000842,1771519839894,-1809.94988451,0.00018,2]
[406000843,1771519840000,-1078459.25614521,0.00018,2]
[406000844,1771519840011,-242.34,0.00018,7]
[406000845,1771519840021,-151.0,0.00018,2]
[406000846,1771519840035,-165.38653987,0.00018,2]
[406000847,1771519840044,-702827.97416807,0.00018,2]
[406000848,1771519840055,-556887.71503147,0.00018,2]
[406000849,1771519840064,-200.0,0.00018,2]
[406000850,1771519840074,-155.9611,0.00018,2]
[406000851,1771519840083,-151.0,0.00018,2]
[406000852,1771519840094,-151.0,0.00018,2]
[406000853,1771519840106,-151.0,0.00018,2]
[406000854,1771519840116,-151.0,0.00018,2]
[406000855,1771519840125,-151.0,0.00018,2]
[406000856,1771519840134,-151.0,0.00018,2]
[406000857,1771519840144,-151.0,0.00018,2]
[406000858,1771519840153,-151.0,0.00018,2]
[406000859,1771519840163,-151.0,0.00018,2]
[406000860,1771519840172,-151.0,0.00018,2]
[406000861,1771519840182,-317.987551,0.00018,2]
[406000862,1771519840191,-317.987551,0.00018,2]
[406000863,1771519840201,-317.987551,0.00018,2]
[406000864,1771519840211,-317.987551,0.00018,2]
[406000866,1771519840220,-317.987551,0.00018,2]
[406000867,1771519840229,-317.987551,0.00018,2]
[406000868,1771519840239,-317.987551,0.00018,2]
[406000869,1771519840249,-317.987551,0.00018,2]
[406000870,1771519840258,-669.736706,0.00018,2]
[406000871,1771519840267,-669.736706,0.00018,2]
[406000872,1771519840277,-669.736706,0.00018,2]
[406000873,1771519840286,-669.736706,0.00018,2]
[406000874,1771519840295,-669.736706,0.00018,2]
[406000875,1771519840304,-669.736706,0.00018,2]
[406000876,1771519840314,-669.736706,0.00018,2]
[406000877,1771519840323,-669.736706,0.00018,2]
[406000878,1771519840333,-243.496731,0.00018,2]
[406000879,1771519840342,-243.496731,0.00018,2]
[406000880,1771519840351,-243.496731,0.00018,2]
[406000881,1771519840361,-243.496731,0.00018,2]
[406000882,1771519840370,-243.496731,0.00018,2]
[406000883,1771519840380,-243.496731,0.00018,2]
[406000884,1771519840390,-243.496731,0.00018,2]
[406000885,1771519840400,-243.496731,0.00018,2]
[406000886,1771519840409,-151.0,0.00018,2]
[406000887,1771519840420,-151.0,0.00018,2]
[406000888,1771519840430,-151.0,0.00018,2]
[406000889,1771519840439,-151.0,0.00018,2]
[406000890,1771519840449,-155.0,0.00018,3]
[406000891,1771519840459,-164.0,0.00018,3]
[406000892,1771519840468,-487.0,0.00018,2]
[406000893,1771519840477,-487.0,0.00018,2]
[406000894,1771519840487,-487.0,0.00018,2]
[406000895,1771519840496,-487.0,0.00018,2]
[406000896,1771519840505,-487.0,0.00018,2]
[406000897,1771519840515,-487.0,0.00018,2]
[406000898,1771519840524,-487.0,0.00018,2]
[406000899,1771519840534,-487.0,0.00018,2]
[406000900,1771519840543,-487.0,0.00018,2]
[406000901,1771519840552,-487.0,0.00018,2]
[406000902,1771519840561,-487.0,0.00018,2]
[406000903,1771519840570,-487.0,0.00018,2]
[406000904,1771519840580,-487.0,0.00018,2]
[406000905,1771519840589,-487.0,0.00018,2]
[406000906,1771519840598,-900.33,0.00018,2]
[406000907,1771519840608,-168.0,0.00018003,2]
[406000908,1771519840619,-427.0,0.00018035,2]
[406000909,1771519840628,-168.0,0.00018047,2]
[406000910,1771519840638,-2666.366998,0.00018093,7]
[406000911,1771519840648,-427.0,0.00018096,2]
[406000912,1771519840658,-166.66,0.00018129,2]
[406000913,1771519840667,-168.0,0.0001814,2]
[406000914,1771519840676,-168.0,0.00018152,2]
[406000915,1771519840685,-989.0,0.000182,2]
[406000916,1771519840694,-309.0,0.000182,2]
[406000917,1771519840703,-431.0,0.000182,2]
[406000918,1771519840712,-852.0,0.000182,2]
[406000919,1771519840723,-167.89,0.00018223,2]
[406000920,1771519840732,-168.0,0.00018238,2]
[406000921,1771519840742,-423.669802,0.00018259,7]
[406000922,1771519840751,-168.0,0.00018321,2]
[406000923,1771519840760,-168.0,0.00018324,2]
[406000924,1771519840771,-168.0,0.00018359,2]
[406000925,1771519840781,-168.0,0.00018387,2]
[406000926,1771519840790,-168.0,0.00018438,2]
[406000927,1771519840799,-450.0,0.00018507,2]
[406000928,1771519840808,-350.0,0.00018532,2]
[406000929,1771519840818,-1000.0,0.00018544,2]
[406000930,1771519840827,-168.0,0.00018582,2]
[406000931,1771519840836,-350.0,0.00018621,2]
[406000932,1771519840846,-168.0,0.00018678,2]
[406000933,1771519840856,-160.39897394,0.00018797,2]
[406000934,1771519840867,-300.0,0.00018873,2]
[406000935,1771519840876,-700.0,0.00018945,2]
[406000936,1771519840886,-179.4,0.00018989,2]
[406000937,1771519841047,-350.0,0.00019,2]
[406000938,1771519841057,-200.0,0.00019,5]
[406000939,1771519841067,-168.0,0.00019048,2]
[406000940,1771519841077,-6562.6947821,0.00019098,2]
[406000941,1771519841086,-168.0,0.00019157,2]
[406000942,1771519841097,-370.64791783,0.00019178,2]
[406000943,1771519841106,-328.83,0.00019178,30]
[406000944,1771519841116,-151.0,0.00019178,2]
[406000945,1771519841126,-151.0,0.00019178,2]
[406000946,1771519841136,-151.0,0.00019178,2]
[406000947,1771519841146,-151.0,0.00019178,2]
[406000948,1771519841155,-150.0,0.00019178,2]
[406000949,1771519841164,-168.0,0.0001918,2]
[406000950,1771519841175,-427.0,0.00019287,2]
[406000951,1771519841185,-272.73034255,0.00019338,2]
[406000952,1771519841195,-2909.07,0.00019413,2]
[406000953,1771519841204,-168.0,0.00019462,2]
[406000954,1771519841213,-306.60799719,0.00019675,2]
[406000955,1771519841222,-250.0,0.00019726,2]
[406000956,1771519841232,-155.0,0.00019798,2]
[406000957,1771519841241,-747.8093786,0.00019838,2]
[406000958,1771519841250,-168.47,0.0001985,2]
[406000959,1771519841259,-34064.91980928,0.0001995,15]
[406000960,1771519841270,-1338.0,0.00019963,2]
[406000961,1771519841279,-413.0,0.00019963,2]
[406000962,1771519841288,-1000.0,0.00019995,7]
[406000963,1771519841298,-1537.41409314,0.0002,2]
[406000964,1771519841308,-176.98212293,0.0002,2]
[406000965,1771519841319,-2464.68,0.0002,2]
[406000966,1771519841328,-1297.93635533,0.0002,2]
[406000967,1771519841338,-1047.76611498,0.0002,2]
[406000968,1771519841349,-2871.14674483,0.0002,2]
[406000969,1771519841358,-154.89258889,0.0002,2]
[406000970,1771519841368,-152.0,0.0002,2]
[406000971,1771519841378,-4804.03130686,0.0002,2]
[406000972,1771519841389,-3897.41266873,0.0002,2]
[406000973,1771519841399,-5000.0,0.0002,2]
[406000974,1771519841410,-2000.0,0.0002,2]